fUST/lending_fUST_20251006
["ID","MTS","AMOUNT","RATE_DAILY","PERIOD"]
[389529665,1759699846441,-500.0,0.00017534,2]
[389529666,1759699846451,-500.0,0.00017534,2]
[389529667,1759699846461,-500.0,0.00017534,2]
[389529668,1759699846471,-500.0,0.00017534,2]
[389529669,1759699846481,-500.0,0.00017534,2]
[389529670,1759699846490,-500.0,0.00017534,2]
[389529671,1759699846499,-1197.55,0.00017534,2]
[389529672,1759699846508,-505.23,0.00017534,2]
[389529673,1759699846518,-500.0,0.00017534,2]
[389529674,1759699846527,-500.0,0.00017534,2]
[389529675,1759699846536,-500.0,0.00017534,2]
[389529676,1759699846545,-500.0,0.00017534,2]
[389529677,1759699846554,-500.0,0.00017534,2]
[389529678,1759699846563,-500.0,0.00017534,2]
[389529679,1759699846573,-500.0,0.00017534,2]
[389529680,1759699846582,-1143.81,0.00017534,2]
[389529681,1759699846591,-709.87,0.00017534,2]
[389529682,1759699846600,-500.0,0.00017534,2]
[389529683,1759699846609,-500.0,0.00017534,2]
[389529684,1759699846618,-500.0,0.00017534,2]
[389529685,1759699846628,-500.0,0.00017534,2]
[389529686,1759699846637,-500.0,0.00017534,2]
[389529687,1759699846646,-500.0,0.00017534,2]
[389529688,1759699846655,-500.0,0.00017534,2]
[389529689,1759699846667,-805.2,0.00017534,2]
[389529690,1759699846677,-500.0,0.00017534,2]
[389529691,1759699846686,-500.0,0.00017534,2]
[389529692,1759699846698,-500.0,0.00017534,2]
[389529693,1759699846707,-500.0,0.00017534,2]
[389529694,1759699846716,-500.0,0.00017534,2]
[389529695,1759699846726,-601.33,0.00017534,2]
[389529696,1759699846735,-621.97,0.00017534,2]
[389529697,1759699846744,-513.21,0.00017534,2]
[389529698,1759699846753,-562.7,0.00017534,2]
[389529699,1759699846762,-500.0,0.00017534,2]
[389529700,1759699846771,-233.26011454,0.00017534,2]
[389529701,1759699846780,-648.62,0.00017534,2]
[389529702,1759699846790,-500.0,0.00017534,2]
[389529703,1759699846799,-500.0,0.00017534,2]
[389529704,1759699846807,-500.0,0.00017534,2]
[389529705,1759699846816,-500.0,0.00017534,2]
[389529706,1759699846826,-500.0,0.00017534,2]
[389529707,1759699846835,-1039.1,0.00017534,2]
[389529708,1759699846844,-955.84,0.00017534,2]
[389529709,1759699846853,-151.0,0.00017534,2]
[389529710,1759699846863,-151.0,0.00017534,2]
[389529711,1759699846872,-151.0,0.00017534,2]
[389529712,1759699846882,-500.0,0.00017534,2]
[389529713,1759699846891,-269.523592,0.00017534,2]
[389529714,1759699846900,-500.0,0.00017534,2]
[389529715,1759699846910,-151.0,0.00017534,2]
[389529716,1759699846919,-500.0,0.00017534,2]
[389529717,1759699846928,-526.44,0.00017534,2]
[389529718,1759699846938,-521.36,0.00017534,2]
[389529719,1759699846948,-500.0,0.00017534,2]
[389529720,1759699846957,-500.0,0.00017534,2]
[389529721,1759699846967,-500.0,0.00017534,2]
[389529722,1759699846976,-151.0,0.00017534,2]
[389529723,1759699846987,-500.0,0.00017534,2]
[389529724,1759699846999,-151.0,0.00017534,2]
[389529725,1759699847008,-151.0,0.00017534,2]
[389529726,1759699847018,-500.0,0.00017534,2]
[389529727,1759699847028,-151.0,0.00017534,2]
[389529728,1759699847038,-1243.9,0.00017534,2]
[389529729,1759699847047,-151.0,0.00017534,2]
[389529730,1759699847056,-500.0,0.00017534,2]
[389529731,1759699847067,-500.0,0.00017534,2]
[389529732,1759699847076,-151.0,0.00017534,2]
[389529733,1759699847085,-151.0,0.00017534,2]
[389529734,1759699847094,-365.81147749,0.00017534,2]
[389529735,1759699847103,-151.0,0.00017534,2]
[389529736,1759699847112,-2272.19,0.00017534,2]
[389529737,1759699847121,-151.0,0.00017534,2]
[389529738,1759699847131,-151.0,0.00017534,2]
[389529739,1759699847140,-151.0,0.00017534,2]
[389529740,1759699847149,-500.0,0.00017534,2]
[389529741,1759699847158,-500.0,0.00017534,2]
[389529742,1759699847167,-826.91,0.00017534,2]
[389529743,1759699847176,-1052.5,0.00017534,2]
[389529744,1759699847185,-151.0,0.00017534,2]
[389529745,1759699847194,-199.83146398,0.00017534,2]
[389529746,1759699847203,-287.236858,0.00017534,2]
[389529747,1759699847212,-1122.09,0.00017534,2]
[389529748,1759699847222,-1443.56,0.00017534,2]
[389529749,1759699847231,-2707.89,0.00017534,2]
[389529750,1759699847240,-831.54,0.00017534,2]
[389529751,1759699847249,-500.0,0.00017534,2]
[389529752,1759699847258,-535.68,0.00017534,2]
[389529753,1759699847267,-500.0,0.00017534,2]
[389529754,1759699847276,-151.0,0.00017534,2]
[389529755,1759699847285,-805.69,0.00017534,2]
[389529756,1759699847295,-500.0,0.00017534,2]
[389529757,1759699847305,-151.0,0.00017534,2]
[389529758,1759699847316,-151.0,0.00017534,2]
[389529759,1759699847326,-500.0,0.00017534,2]
[389529760,1759699847341,-3973.99,0.00017534,2]
[389529761,1759699847350,-151.0,0.00017534,2]
[389529762,1759699847359,-877.38,0.00017534,2]
[389529763,1759699847368,-500.0,0.00017534,2]
[389529764,1759699847377,-500.0,0.00017534,2]
[389529765,1759699847387,-402.38449506,0.00017534,2]
[389529766,1759699847396,-1403.53,0.00017534,2]
[389529767,1759699847405,-500.0,0.00017534,2]
[389529768,1759699847415,-621.72,0.00017534,2]
[389529769,1759699847424,-2334.53,0.00017534,2]
[389529770,1759699847433,-2873.23,0.00017534,2]
[389529771,1759699847443,-1087.4,0.00017534,2]
[389529772,1759699847453,-500.0,0.00017534,2]
[389529773,1759699847462,-500.0,0.00017534,2]
[389529774,1759699847472,-816.15,0.00017534,2]
[389529775,1759699847481,-2446.19,0.00017534,2]
[389529776,1759699847491,-615.44,0.00017534,2]
[389529777,1759699847501,-612.58,0.00017534,2]
[389529778,1759699847511,-500.0,0.00017534,2]
[389529779,1759699847520,-500.0,0.00017534,2]
[389529780,1759699847530,-500.0,0.00017534,2]
[389529781,1759699847539,-500.0,0.00017534,2]
[389529782,1759699847548,-679.39,0.00017534,2]
[389529783,1759699847558,-500.0,0.00017534,2]
[389529784,1759699847567,-4846.57,0.00017534,2]
[389529785,1759699847576,-542.51,0.00017534,2]
[389529786,1759699847585,-659.83,0.00017534,2]
[389529787,1759699847595,-1123.03,0.00017534,2]
[389529788,1759699847604,-968.09,0.00017534,2]
[389529789,1759699847613,-1937.48,0.00017534,2]
[389529790,1759699847624,-576.59,0.00017534,2]
[389529791,1759699847633,-1032.39,0.00017534,2]
[389529792,1759699847642,-500.0,0.00017534,2]
[389529793,1759699847653,-500.0,0.00017534,2]
[389529794,1759699847662,-1738.6,0.00017534,2]
[389529795,1759699847672,-865.85,0.00017534,2]
[389529796,1759699847681,-620.87,0.00017534,2]
[389529797,1759699847690,-500.0,0.00017534,2]
[389529798,1759699847699,-757.2,0.00017534,2]
[389529799,1759699847710,-500.0,0.00017534,2]
[389529800,1759699847719,-529.04,0.00017534,2]
[389529801,1759699847728,-3667.07,0.00017534,2]
[389529802,1759699847737,-500.0,0.00017534,2]
[389529803,1759699847746,-500.0,0.00017534,2]
[389529804,1759699847755,-500.0,0.00017534,2]
[389529805,1759699847765,-500.0,0.00017534,2]
[389529806,1759699847774,-500.0,0.00017534,2]
[389529807,1759699847784,-151.0,0.00017534,2]
[389529808,1759699847793,-10832.47,0.00017534,2]
[389529809,1759699847802,-578.82,0.00017534,2]
[389529810,1759699847811,-500.0,0.00017534,2]
[389529811,1759699847820,-500.0,0.00017534,2]
[389529812,1759699847829,-151.0,0.00017534,2]
[389529813,1759699847839,-500.0,0.00017534,2]
[389529814,1759699847848,-1061.87,0.00017534,2]
[389529815,1759699847857,-500.0,0.00017534,2]
[389529816,1759699847866,-2723.59,0.00017534,2]
[389529817,1759699847875,-1421.17,0.00017534,2]
[389529818,1759699847885,-6185.69,0.00017534,2]
[389529819,1759699847894,-500.0,0.00017534,2]
[389529820,1759699847903,-900.23,0.00017534,2]
[389529821,1759699847912,-500.0,0.00017534,2]
[389529822,1759699847921,-500.0,0.00017534,2]
[389529823,1759699847931,-6340.07,0.00017534,2]
[389529824,1759699847940,-500.0,0.00017534,2]
[389529825,1759699847950,-151.0,0.00017534,2]
[389529826,1759699847959,-500.0,0.00017534,2]
[389529827,1759699847969,-3224.65,0.00017534,2]
[389529828,1759699847978,-257.527292,0.00017534,2]
[389529829,1759699847987,-557.63,0.00017534,2]
[389529830,1759699847996,-625.46,0.00017534,2]
[389529831,1759699848005,-1034.87,0.00017534,2]
[389529832,1759699848015,-657.66,0.00017534,2]
[389529833,1759699848024,-500.0,0.00017534,2]
[389529834,1759699848034,-709.67,0.00017534,2]
[389529835,1759699848044,-1433.0,0.00017534,2]
[389529836,1759699848055,-2989.31,0.00017534,2]
[389529837,1759699848065,-500.0,0.00017534,2]
[389529838,1759699848076,-372.0,0.00017538,2]
[389529839,1759699848087,-2109.13272147,0.000176,2]
[389529840,1759699848097,-167.83565487,0.00017608,2]
[389529841,1759699848106,-528.26080411,0.00017643,2]
[389529842,1759699848116,-162.6680534,0.00017671,2]
[389529843,1759699848126,-587.6575632,0.00017671,2]
[389529844,1759699848135,-162.6680534,0.00017671,2]
[389529845,1759699848145,-587.6575632,0.00017671,2]
[389529846,1759699848155,-162.6680534,0.00017671,2]
[389529847,1759699848164,-297.5145665,0.00017671,2]
[389529848,1759699848173,-587.6575632,0.00017671,2]
[389529849,1759699848183,-162.6680534,0.00017671,2]
[389529850,1759699848193,-297.5145665,0.00017671,2]
[389529851,1759699848202,-587.6575632,0.00017671,2]
[389529852,1759699848211,-162.6680534,0.00017671,2]
[389529853,1759699848220,-297.5145665,0.00017671,2]
[389529854,1759699848230,-587.6575632,0.00017671,2]
[389529855,1759699848240,-297.5145665,0.00017671,2]
[389529856,1759699848249,-162.6680534,0.00017671,2]
[389529857,1759699848259,-953.2725285,0.00017671,2]
[389529858,1759699848269,-297.5145665,0.00017671,2]
[389529859,1759699848279,-162.6680534,0.00017671,2]
[389529860,1759699848288,-162.6680534,0.00017671,2]
[389529861,1759699848298,-297.5145665,0.00017671,2]
[389529862,1759699848308,-297.5145665,0.00017671,2]
[389529863,1759699848317,-500.0,0.00017784,2]
[389529864,1759699848327,-500.0,0.00017784,2]
[389529865,1759699848342,-500.0,0.00017784,2]
[389529866,1759699848352,-500.0,0.00017784,2]
[389529867,1759699848361,-500.0,0.00017784,2]
[389529868,1759699848370,-500.0,0.00017784,2]
[389529869,1759699848382,-500.0,0.00017784,2]
[389529870,1759699848392,-500.0,0.0001779,2]
[389529871,1759699848401,-500.0,0.0001779,2]
[389529872,1759699848413,-1391.0,0.00017795,2]
[389529873,1759699848422,-500.0,0.00017808,2]
[389529874,1759699848431,-229.67497462,0.00017808,2]
[389529875,1759699848440,-500.0,0.00017808,2]
[389529876,1759699848450,-500.0,0.00017808,2]
[389529877,1759699848459,-500.0,0.00017808,2]
[389529878,1759699848468,-1197.55,0.00017808,2]
[389529879,1759699848478,-505.23,0.00017808,2]
[389529880,1759699848487,-500.0,0.00017808,2]
[389529881,1759699848497,-500.0,0.00017808,2]
[389529882,1759699848506,-151.0,0.00017808,2]
[389529883,1759699848515,-500.0,0.00017808,2]
[389529884,1759699848524,-500.0,0.00017808,2]
[389529885,1759699848535,-500.0,0.00017808,2]
[389529886,1759699848544,-161.898412,0.00017808,2]
[389529887,1759699848553,-155.610953,0.00017808,2]
[389529888,1759699848562,-500.0,0.00017808,2]
[389529889,1759699848572,-500.0,0.00017808,2]
[389529890,1759699848581,-1143.81,0.00017808,2]
[389529891,1759699848591,-151.0,0.00017808,2]
[389529892,1759699848600,-709.87,0.00017808,2]
[389529893,1759699848610,-500.0,0.00017808,2]
[389529894,1759699848619,-151.0,0.00017808,2]
[389529895,1759699848629,-500.0,0.00017808,2]
[389529896,1759699848638,-500.0,0.00017808,2]
[389529897,1759699848648,-151.0,0.00017808,2]
[389529898,1759699848657,-500.0,0.00017808,2]
[389529899,1759699848667,-500.0,0.00017808,2]
[389529900,1759699848676,-500.0,0.00017808,2]
[389529901,1759699848685,-151.0,0.00017808,2]
[389529902,1759699848695,-151.0,0.00017808,2]
[389529903,1759699848705,-153.189557,0.00017808,2]
[389529904,1759699848715,-151.0,0.00017808,2]
[389529905,1759699848724,-151.0,0.00017808,2]
[389529906,1759699848734,-181.592506,0.00017808,2]
[389529907,1759699848744,-500.0,0.00017808,2]
[389529908,1759699848754,-805.2,0.00017808,2]
[389529909,1759699848763,-500.0,0.00017808,2]
[389529910,1759699848772,-151.0,0.00017808,2]
[389529911,1759699848783,-151.0,0.00017808,2]
[389529912,1759699848792,-500.0,0.00017808,2]
[389529913,1759699848802,-151.0,0.00017808,2]
[389529914,1759699848812,-151.0,0.00017808,2]
[389529915,1759699848822,-532.46792015,0.00017808,2]
[389529916,1759699848831,-500.0,0.00017808,2]
[389529917,1759699848841,-151.0,0.00017808,2]
[389529918,1759699848850,-601.33,0.00017808,2]
[389529919,1759699848860,-621.97,0.00017808,2]
[389529920,1759699848870,-513.21,0.00017808,2]
[389529921,1759699848879,-562.7,0.00017808,2]
[389529922,1759699848889,-500.0,0.00017808,2]
[389529923,1759699848898,-151.0,0.00017808,2]
[389529924,1759699848907,-151.0,0.00017808,2]
[389529925,1759699848917,-648.62,0.00017808,2]
[389529926,1759699848926,-151.0,0.00017808,2]
[389529927,1759699848936,-151.0,0.00017808,2]
[389529928,1759699848945,-500.0,0.00017808,2]
[389529929,1759699848955,-151.0,0.00017808,2]
[389529930,1759699848966,-151.0,0.00017808,2]
[389529931,1759699848975,-342.24774734,0.00017808,2]
[389529932,1759699848985,-500.0,0.00017808,2]
[389529933,1759699848994,-500.0,0.00017808,2]
[389529934,1759699849004,-500.0,0.00017808,2]
[389529935,1759699849014,-1039.1,0.00017808,2]
[389529936,1759699849024,-955.84,0.00017808,2]
[389529937,1759699849034,-500.0,0.00017808,2]
[389529938,1759699849044,-500.0,0.00017808,2]
[389529939,1759699849054,-526.44,0.00017808,2]
[389529940,1759699849063,-521.36,0.00017808,2]
[389529941,1759699849073,-500.0,0.00017808,2]
[389529942,1759699849082,-500.0,0.00017808,2]
[389529943,1759699849092,-500.0,0.00017808,2]
[389529944,1759699849101,-500.0,0.00017808,2]
[389529945,1759699849111,-1243.9,0.00017808,2]
[389529946,1759699849120,-500.0,0.00017808,2]
[389529947,1759699849129,-500.0,0.00017808,2]
[389529948,1759699849139,-151.0,0.00017808,2]
[389529949,1759699849149,-151.0,0.00017808,2]
[389529950,1759699849158,-2272.19,0.00017808,2]
[389529951,1759699849168,-151.0,0.00017808,2]
[389529952,1759699849177,-500.0,0.00017808,2]
[389529953,1759699849187,-500.0,0.00017808,2]
[389529954,1759699849197,-826.91,0.00017808,2]
[389529955,1759699849207,-1052.5,0.00017808,2]
[389529956,1759699849216,-151.0,0.00017808,2]
[389529957,1759699849226,-1122.09,0.00017808,2]
[389529958,1759699849236,-1443.56,0.00017808,2]
[389529959,1759699849246,-2707.89,0.00017808,2]
[389529960,1759699849255,-500.0,0.00017808,2]
[389529961,1759699849265,-831.54,0.00017808,2]
[389529962,1759699849274,-535.68,0.00017808,2]
[389529963,1759699849284,-239.659466,0.00017808,2]
[389529964,1759699849293,-805.69,0.00017808,2]
[389529965,1759699849303,-500.0,0.00017808,2]
[389529966,1759699849312,-500.0,0.00017808,2]
[389529967,1759699849322,-3973.99,0.00017808,2]
[389529968,1759699849333,-877.38,0.00017808,2]
[389529969,1759699849344,-151.0,0.00017808,2]
[389529970,1759699849353,-500.0,0.00017808,2]
[389529971,1759699849363,-500.0,0.00017808,2]
[389529972,1759699849373,-1403.53,0.00017808,2]
[389529973,1759699849382,-151.0,0.00017808,2]
[389529974,1759699849392,-151.0,0.00017808,2]
[389529975,1759699849402,-500.0,0.00017808,2]
[389529976,1759699849411,-151.0,0.00017808,2]
[389529977,1759699849421,-621.72,0.00017808,2]
[389529978,1759699849431,-151.0,0.00017808,2]
[389529979,1759699849440,-2334.53,0.00017808,2]
[389529980,1759699849450,-151.0,0.00017808,2]
[389529981,1759699849460,-2873.23,0.00017808,2]
[389529982,1759699849469,-1087.4,0.00017808,2]
[389529983,1759699849480,-500.0,0.00017808,2]
[389529984,1759699849490,-500.0,0.00017808,2]
[389529985,1759699849500,-816.15,0.00017808,2]
[389529986,1759699849510,-2446.19,0.00017808,2]
[389529987,1759699849519,-615.44,0.00017808,2]
[389529988,1759699849528,-151.0,0.00017808,2]
[389529989,1759699849539,-612.58,0.00017808,2]
[389529990,1759699849549,-500.0,0.00017808,2]
[389529991,1759699849559,-500.0,0.00017808,2]
[389529992,1759699849568,-500.0,0.00017808,2]
[389529993,1759699849578,-500.0,0.00017808,2]
[389529994,1759699849587,-679.39,0.00017808,2]
[389529995,1759699849596,-500.0,0.00017808,2]
[389529996,1759699849606,-4846.57,0.00017808,2]
[389529997,1759699849615,-542.51,0.00017808,2]
[389529998,1759699849624,-659.83,0.00017808,2]
[389529999,1759699849634,-1123.03,0.00017808,2]
[389530000,1759699849642,-151.0,0.00017808,2]
[389530001,1759699849650,-968.09,0.00017808,2]
[389530002,1759699849659,-1937.48,0.00017808,2]
[389530003,1759699849669,-151.0,0.00017808,2]
[389530004,1759699849679,-576.59,0.00017808,2]
[389530005,1759699849688,-151.0,0.00017808,2]
[389530006,1759699849698,-1032.39,0.00017808,2]
[389530007,1759699849707,-500.0,0.00017808,2]
[389530008,1759699849717,-151.0,0.00017808,2]
[389530009,1759699849726,-500.0,0.00017808,2]
[389530010,1759699849736,-151.0,0.00017808,2]
[389530011,1759699849745,-1738.6,0.00017808,2]
[389530012,1759699849755,-865.85,0.00017808,2]
[389530013,1759699849766,-620.87,0.00017808,2]
[389530014,1759699849775,-151.0,0.00017808,2]
[389530015,1759699849785,-151.0,0.00017808,2]
[389530016,1759699849795,-500.0,0.00017808,2]
[389530017,1759699849804,-151.0,0.00017808,2]
[389530018,1759699849813,-757.2,0.00017808,2]
[389530019,1759699849823,-500.0,0.00017808,2]
[389530020,1759699849833,-529.04,0.00017808,2]
[389530021,1759699849842,-151.0,0.00017808,2]
[389530022,1759699849852,-3667.07,0.00017808,2]
[389530023,1759699849861,-500.0,0.00017808,2]
[389530024,1759699849871,-151.0,0.00017808,2]
[389530025,1759699849881,-500.0,0.00017808,2]
[389530026,1759699849890,-500.0,0.00017808,2]
[389530027,1759699849900,-10832.47,0.00017808,2]
[389530028,1759699849910,-578.82,0.00017808,2]
[389530029,1759699849919,-500.0,0.00017808,2]
[389530030,1759699849929,-500.0,0.00017808,2]
[389530031,1759699849939,-500.0,0.00017808,2]
[389530032,1759699849949,-1061.87,0.00017808,2]
[389530033,1759699849959,-500.0,0.00017808,2]
[389530034,1759699849970,-2723.59,0.00017808,2]
[389530035,1759699850137,-1421.17,0.00017808,2]
[389530036,1759699850147,-6185.69,0.00017808,2]
[389530037,1759699850156,-500.0,0.00017808,2]
[389530038,1759699850166,-900.23,0.00017808,2]
[389530039,1759699850175,-500.0,0.00017808,2]
[389530040,1759699850184,-6340.07,0.00017808,2]
[389530041,1759699850193,-379.9797483,0.00017808,2]
[389530042,1759699850202,-330.06242612,0.00017808,2]
[389530043,1759699850212,-3224.65,0.00017808,2]
[389530044,1759699850222,-557.63,0.00017808,2]
[389530045,1759699850231,-625.46,0.00017808,2]
[389530046,1759699850240,-1034.87,0.00017808,2]
[389530047,1759699850249,-657.66,0.00017808,2]
[389530048,1759699850259,-500.0,0.00017808,2]
[389530049,1759699850268,-709.67,0.00017808,2]
[389530050,1759699850278,-1433.0,0.00017808,2]
[389530051,1759699850290,-2989.31,0.00017808,2]
[389530052,1759699850299,-500.0,0.00017808,2]
[389530053,1759699850308,-500.0,0.00017822,2]
[389530054,1759699850319,-500.0,0.00017822,2]
[389530055,1759699850328,-500.0,0.00017822,2]
[389530056,1759699850342,-500.0,0.00017822,2]
[389530057,1759699850352,-500.0,0.00017822,2]
[389530058,1759699850361,-500.0,0.00017822,2]
[389530059,1759699850370,-500.0,0.00017822,2]
[389530060,1759699850380,-500.0,0.00017822,2]
[389530061,1759699850390,-500.0,0.00017822,2]
[389530062,1759699850399,-500.0,0.00017822,2]
[389530063,1759699850410,-500.0,0.00017822,2]
[389530064,1759699850419,-500.0,0.00017822,2]
[389530065,1759699850427,-500.0,0.00017822,2]
[389530066,1759699850438,-501.97120374,0.00017822,2]
[389530067,1759699850447,-500.0,0.00017822,2]
[389530068,1759699850457,-500.0,0.00017822,2]
[389530069,1759699850466,-500.0,0.00017822,2]
[389530070,1759699850476,-500.0,0.00017822,2]
[389530071,1759699850485,-500.0,0.00017822,2]
[389530072,1759699850496,-500.0,0.00017822,2]
[389530073,1759699850506,-374.79613424,0.00017838,2]
[389530074,1759699850515,-20006.03981059,0.00017882,2]
[389530075,1759699850525,-500.0,0.00017892,2]
[389530076,1759699850534,-396.0,0.00017938,2]
[389530077,1759699850544,-532.509,0.00017962,2]
[389530078,1759699850553,-169.4828115,0.00017962,2]
[389530079,1759699850562,-420.0,0.00017962,2]
[389530080,1759699850571,-64744.51754107,0.00018,2]
[389530081,1759699850768,151.0,0.000285,120]
[389530082,1759699851122,-302.0,0.00016438,2]
[389530083,1759699851133,-198.0,0.00016438,2]
[389530084,1759699851142,-500.0,0.00016438,2]
[389530085,1759699851151,-500.0,0.00016438,2]
[389530086,1759699851161,-500.0,0.00016438,2]
[389530087,1759699851170,-500.0,0.00016438,2]
[389530088,1759699851179,-363.78192174,0.00016712,2]
[389530089,1759699851189,-2178.722177,0.0001726,2]
[389530090,1759699851198,-2178.722177,0.0001726,2]
[389530091,1759699851208,-2178.722177,0.0001726,2]
[389530092,1759699851217,-297.5145665,0.00017671,2]
[389530093,1759699851226,-2178.722177,0.00017808,2]
[389530094,1759699851236,-2178.722177,0.00017808,2]
[389530095,1759699851245,-51876.57468829,0.00018,2]
[389530096,1759699851254,-5014.0,0.00018,2]
[389530097,1759699851263,-64294.99631888,0.00018,2]
[389530098,1759699851272,-21395.83294621,0.00018,2]
[389530099,1759699851282,-5055.65863386,0.00018,2]
[389530100,1759699851291,-151.0,0.00018,2]
[389530101,1759699851300,-2178.722177,0.00018,2]
[389530102,1759699851309,-2178.722177,0.00018,2]
[389530103,1759699851319,-528.26080411,0.00018022,2]
[389530104,1759699851328,-260.0,0.00018027,2]
[389530105,1759699851340,-1680.0,0.00018052,2]
[389530106,1759699851349,-186.85721511,0.00018082,2]
[389530107,1759699851359,-500.0,0.00018082,2]
[389530108,1759699851368,-183.4,0.00018082,2]
[389530109,1759699851379,-500.0,0.00018082,2]
[389530110,1759699851388,-314.17833046,0.00018082,2]
[389530111,1759699851397,-1197.55,0.00018082,2]
[389530112,1759699851408,-505.23,0.00018082,2]
[389530113,1759699851421,-500.0,0.00018082,2]
[389530114,1759699851431,-500.0,0.00018082,2]
[389530115,1759699851441,-500.0,0.00018082,2]
[389530116,1759699851452,-500.0,0.00018082,2]
[389530117,1759699851461,-500.0,0.00018082,2]
[389530118,1759699851471,-1143.81,0.00018082,2]
[389530119,1759699851482,-709.87,0.00018082,2]
[389530120,1759699851491,-500.0,0.00018082,2]
[389530121,1759699851501,-500.0,0.00018082,2]
[389530122,1759699851510,-500.0,0.00018082,2]
[389530123,1759699851519,-500.0,0.00018082,2]
[389530124,1759699851527,-636.39269527,0.00018082,2]
[389530125,1759699851536,-500.0,0.00018082,2]
[389530126,1759699851545,-500.0,0.00018082,2]
[389530127,1759699851555,-805.2,0.00018082,2]
[389530128,1759699851564,-500.0,0.00018082,2]
[389530129,1759699851574,-500.0,0.00018082,2]
[389530130,1759699851583,-500.0,0.00018082,2]
[389530131,1759699851592,-601.33,0.00018082,2]
[389530132,1759699851602,-621.97,0.00018082,2]
[389530133,1759699851612,-513.21,0.00018082,2]
[389530134,1759699851621,-562.7,0.00018082,2]
[389530135,1759699851631,-500.0,0.00018082,2]
[389530136,1759699851640,-151.0,0.00018082,2]
[389530137,1759699851650,-151.0,0.00018082,2]
[389530138,1759699851659,-648.62,0.00018082,2]
[389530139,1759699851668,-151.0,0.00018082,2]
[389530140,1759699851678,-151.0,0.00018082,2]
[389530141,1759699851688,-500.0,0.00018082,2]
[389530142,1759699851697,-151.0,0.00018082,2]
[389530143,1759699851708,-500.0,0.00018082,2]
[389530144,1759699851720,-500.0,0.00018082,2]
[389530145,1759699851729,-500.0,0.00018082,2]
[389530146,1759699851739,-1039.1,0.00018082,2]
[389530147,1759699851749,-955.84,0.00018082,2]
[389530148,1759699851758,-151.0,0.00018082,2]
[389530149,1759699851768,-151.0,0.00018082,2]
[389530150,1759699851783,-151.0,0.00018082,2]
[389530151,1759699851797,-500.0,0.00018082,2]
[389530152,1759699851809,-151.0,0.00018082,2]
[389530153,1759699851822,-500.0,0.00018082,2]
[389530154,1759699851834,-526.44,0.00018082,2]
[389530155,1759699851844,-521.36,0.00018082,2]
[389530156,1759699851857,-500.0,0.00018082,2]
[389530157,1759699851869,-500.0,0.00018082,2]
[389530158,1759699851881,-151.0,0.00018082,2]
[389530159,1759699851894,-500.0,0.00018082,2]
[389530160,1759699851907,-151.0,0.00018082,2]
[389530161,1759699851919,-226.35557,0.00018082,2]
[389530162,1759699851932,-500.0,0.00018082,2]
[389530163,1759699851945,-151.0,0.00018082,2]
[389530164,1759699851957,-1243.9,0.00018082,2]